Cogmind - Beta 10.2 @@@ ROGUE MODE // 2021.03.11 @ 07:23:30 Player: MoonDog Result: Destroyed by Y-45 Defender with Beam Rifle Performance ------------- Evolutions (1) 500 Regions Visited (2) 400 Robots Destroyed (20) 100 Value Destroyed (233) 233 Prototype IDs (0) 0 Alien Tech Used (0) 0 Bonus (0) 0 TOTAL SCORE: 1233 Bonus ------- None Cogmind --------- Core Integrity 0/400 Matter 224/300 Energy 100/100 System Corruption 0% Temperature Cool (9) Movement Core (150) Ox2 Location -9/Materials Parts ------- > --- POWER (1) -------- (None) > --- PROPULSION (3) --- (None) > --- UTILITY (3) ------ Small Storage Unit Targeting Computer > --- WEAPON (2) ------- Heavy Hammer > --- INVENTORY (6) ---- VTOL Module Large Matter Pod (0) Improved Signal Interpreter Light Assault Rifle Autogun Peak State ------------ > --- POWER ------------ Light Nuclear Core > --- PROPULSION ------- Flight Unit Flight Unit Flight Unit > --- UTILITY ---------- Large Matter Pod Targeting Computer Targeting Computer > --- WEAPON ----------- Light Assault Rifle Autogun > --- INVENTORY -------- Wheel Large Battery Heavy Hammer [Rating: 12] Favorites ----------- Power Light Nuclear Core Engine Ion Engine Power Core Light Nuclear Core Propulsion Aluminum Leg Leg Aluminum Leg Wheel Wheel Flight Unit Flight Unit Utility Targeting Computer Device Structural Scanner Storage Medium Storage Unit Processor Targeting Computer Weapon Small Laser Energy Gun Small Laser Ballistic Gun Autogun Launcher Grenade Launcher Impact Weapon Heavy Hammer Build | -11 -10 -9 ------- Run | Scr Mat Mat Slots Evolved 2 | . . 2 Power . | . . . Propulsion 1 | . . 1 Utility 1 | . . 1 Weapon . | . . . Parts Attached 31 | 8 7 16 Power 2 | 1 1 . Engine 1 | 1 . . Core 1 | . 1 . Reactor . | . . . Propulsion 9 | 3 1 5 Treads . | . . . Leg 5 | 2 1 2 Wheel 1 | 1 . . Hover . | . . . Flight 3 | . . 3 Utility 11 | 2 4 5 Device 1 | . 1 . Storage 7 | 2 2 3 Processor 3 | . 1 2 Hackware . | . . . Protection . | . . . Artifact . | . . . Weapon 9 | 2 1 6 Energy Gun 2 | 2 . . Energy Cannon . | . . . Ballistic Gun 3 | . . 3 Ballistic Cannon . | . . . Launcher 3 | . 1 2 Special Weapon . | . . . Impact Weapon 1 | . . 1 Slashing Weapon . | . . . Piercing Weapon . | . . . Special Melee Weapon . | . . . Unidentified Prototypes . | . . . Parts Lost 5 | . . 5 Power 1 | . . 1 Propulsion 3 | . . 3 Utility 1 | . . 1 Weapon . | . . . Highest Loss Streak 4 | . . 4 Average Slot Usage (%) 86 | . 99 75 Engine 4 | . 8 . Core 7 | . 4 9 Leg 19 | . 28 11 Flight 5 | . . 9 Device 1 | . 3 . Storage 13 | . 16 10 Processor 11 | . 7 14 Energy Gun 11 | . 24 . Ballistic Gun 4 | . . 9 Launcher 5 | . 3 6 Impact Weapon 1 | . . 2 Naked Turns . | . . . Heaviest Build 20 | 16 20 19 Greatest Support 20 | 20 20 20 Greatest Overweight (x) 6 | 2 . 6 Average Overweight (x) . | . . . Largest Inventory Capacity 12 | 8 12 8 Average Capacity 7 | 6 8 6 Most Carried 8 | 5 8 8 Average Carried 6 | 1 7 6 Final Capacity 8 | 8 8 6 Final Carried 8 | 5 8 5 Class Distribution -------------------- 94% | Mutant 5% | Scavenger-Mutant Dominant Class ---------------- Mutant | -10/Materials Mutant | -9/Materials Resources | -11 -10 -9 ----------- Run | Scr Mat Mat Matter Collected 599 | 316 120 163 Remotely . | . . . Salvage Created 477 | 122 89 266 Parts 32 | 5 3 24 Haulers Intercepted . | . . . Recyclers Shooed 3 | . . 3 Parts Field Recycled . | . . . Retrieved Matter . | . . . Parts Self-Destructed . | . . . Prevented . | . . . Kills | -11 -10 -9 ------- Run | Scr Mat Mat Combat Hostiles Destroyed 11 | . 2 9 Melee 2 | . . 2 Guns 4 | . 2 2 AOE 4 | . . 4 Classes Destroyed 6 | 2 1 3 Worker 2 | 2 . . Builder 2 | . . 2 Recycler 3 | 1 . 2 Watcher 2 | . . 2 Swarmer 9 | . . 9 Grunt 2 | . 2 . Best Kill Streak 8 | 2 2 8 Combat Bots Only 6 | . 2 6 Max Kills in Single Turn 3 | 1 1 3 Gunslinging . | . . . Exploded 3 | . . 3 Melee 1 | . . 1 Uniques/NPCs Destroyed . | . . . Combat | -11 -10 -9 -------- Run | Scr Mat Mat Damage Taken 892 | . 167 725 Core 456 | . 42 414 Absorbed by Shields . | . . . Core Remaining (%) 91 | 100 83 . Volleys Fired 37 | 7 9 21 Largest 2 | 2 2 2 Hottest 80 | 80 80 53 Shots Fired 60 | 14 18 28 Gun 53 | 14 18 21 Cannon . | . . . Launcher 7 | . . 7 Special . | . . . Kinetic 21 | . . 21 Thermal 16 | 7 9 . Explosive 7 | . . 7 Electromagnetic 16 | 7 9 . Robot Hit Streak 18 | 4 18 6 Robot Miss Streak 2 | 2 . 2 Penetration Max . | . . . Secondary Targets 1 | . 1 . Max Gunslinging Chain 1 | . 1 . Shots Hit Robots 56 | 9 17 30 Core Hits 25 | 4 5 16 Critical Hits . | . . . Critical Kills . | . . . Critical Parts Destroyed . | . . . Melee Attacks 20 | . . 20 Impact 20 | . . 20 Slashing . | . . . Piercing . | . . . Sneak Attacks . | . . . Combat Hostiles . | . . . Follow-up Attacks . | . . . Damage Inflicted 1254 | 155 210 889 Guns 499 | 107 210 182 Cannons . | . . . Explosions 410 | 48 . 362 Melee 345 | . . 345 Ramming . | . . . Kinetic 182 | . . 182 Thermal 190 | 101 89 . Explosive 362 | . . 362 Electromagnetic 175 | 54 121 . Impact 345 | . . 345 Slashing . | . . . Piercing . | . . . Highest Corruption . | . . . Average Corruption . | . . . Corruption Purged . | . . . Overload Shots . | . . . Overflow Damage 120 | . . 120 Projectiles . | . . . Explosions 51 | . . 51 Melee 69 | . . 69 Knockbacks . | . . . Impact . | . . . Kinetic . | . . . Secondary . | . . . Self-Inflicted Damage 44 | . . 44 Shots 2 | . . 2 Rammed . | . . . Targets Rammed . | . . . Kicked . | . . . Crushed . | . . . Highest Temperature 189 | 90 189 20 Average Temperature 47 | 35 83 5 Received Heat Transfer 180 | . 99 81 Siege Activations . | . . . Robots Corrupted . | . . . Combat Hostiles . | . . . Parts Fried 2 | 1 1 . Impact Corruptions 4 | . . 4 Robots Melted . | . . . Combat Hostiles . | . . . Parts Melted . | . . . Heat Transferred 325 | 125 200 . Parts Sabotaged . | . . . Parts Stolen . | . . . Parts Stripped . | . . . Power Chain Reactions 1 | 1 . . Missiles Intercepted . | . . . Alert | -11 -10 -9 ------- Run | Scr Mat Mat Peak Influence 295 | 15 74 295 Initial 31 | . 9 31 Average 77 | 5 34 144 Maximum Alert Level 1 | . . 1 Low Security (%) 78 | 100 100 51 Level 1 21 | . . 48 Level 2 . | . . . Level 3 . | . . . Level 4 . | . . . Level 5 . | . . . High Security . | . . . Max Security . | . . . Squads Dispatched . | . . . Investigation . | . . . Extermination . | . . . Reinforcement . | . . . Assault . | . . . Garrison . | . . . Intercept . | . . . Construction Impeded . | . . . Haulers Reinforced . | . . . Stealth | -11 -10 -9 --------- Run | Scr Mat Mat Distress Signals 1 | . . 1 Communications Jammed . | . . . Distress Signals . | . . . Times Spotted 17 | . 3 14 Peak Tracking Total 6 | . 2 6 Tactical Retreats 1 | . 1 . Traps | -11 -10 -9 ------- Run | Scr Mat Mat Traps Triggered 2 | . . 2 Indirectly . | . . . Trap Hack Attempts . | . . . Triggered . | . . . Disarmed . | . . . Reprogrammed . | . . . Reused . | . . . Traps Extracted . | . . . Installed . | . . . Triggered . | . . . Machines | -11 -10 -9 ---------- Run | Scr Mat Mat Machines Disabled . | . . . Max in Single Turn . | . . . Machines Sabotaged . | . . . Garrisons Compromised . | . . . Overloaded Fab Kills . | . . . Fab Network Shutdowns . | . . . Hacking | -11 -10 -9 --------- Run | Scr Mat Mat Machines Accessed 3 | . 1 2 Terminals 3 | . 1 2 Fabricators . | . . . Repair Stations . | . . . Recycling Units . | . . . Scanalyzers . | . . . Garrison Access . | . . . Total Hacks 9 | . 2 7 Successful 6 | . 1 5 Failed 3 | . 1 2 Catastrophic . | . . . Database Lockouts . | . . . Manual 6 | . 2 4 Terminals 9 | . 2 7 Fabricators . | . . . Repair Stations . | . . . Recycling Units . | . . . Scanalyzers . | . . . Garrison Access . | . . . Terminal Hacks 3 | . . 3 Emergency Access Points 1 | . . 1 Terminal Index 1 | . . 1 Maintenance Status 1 | . . 1 Fabricator Hacks . | . . . Repair Station Hacks . | . . . Recycling Unit Hacks . | . . . Scanalyzer . | . . . Garrison Access Hacks . | . . . Unauthorized Hacks 3 | . 1 2 Terminals 3 | . 1 2 Botnet 3 | . 1 2 Fabricators . | . . . Repair Stations . | . . . Recycling Units . | . . . Scanalyzers . | . . . Garrison Access . | . . . Data Cores Recovered . | . . . Used . | . . . Hacking Detections 3 | . 1 2 Full Trace Events . | . . . Feedback Events . | . . . Feedback Blocked . | . . . Robot Schematics Acquired . | . . . Robots Built . | . . . Matter . | . . . Time . | . . . Total Robot Build Rating . | . . . Part Schematics Acquired . | . . . Parts Built . | . . . Matter . | . . . Time . | . . . Total Part Build Rating . | . . . Parts Repaired . | . . . Time . | . . . Parts Recycled . | . . . Recycled Matter . | . . . Retrieved Matter . | . . . Retrieved Components . | . . . Parts Scanalyzed . | . . . Part Schematics Acquired . | . . . Parts Damaged . | . . . Bothacking | -11 -10 -9 ------------ Run | Scr Mat Mat Used RIF Installer . | . . . Robots Hacked . | . . . Non-combat . | . . . Combat . | . . . Robot Hacks Applied . | . . . Relay Couplers Released . | . . . Robots Rewired . | . . . Allies Hacked . | . . . Hacks Repelled . | . . . Allies | -11 -10 -9 -------- Run | Scr Mat Mat Total Allies . | . . . Largest Group . | . . . Highest-Rated Group . | . . . Highest-Rated Ally . | . . . Total Orders . | . . . Ally Attacks . | . . . Total Damage . | . . . Kills . | . . . Allies Corrupted . | . . . Allies Melted . | . . . Intel | -11 -10 -9 ------- Run | Scr Mat Mat Robot Analysis Total . | . . . Derelict Logs Recovered . | . . . Drone Launches . | . . . Drone Recoveries . | . . . Exploration | -11 -10 -9 ------------- Run | Scr Mat Mat Turns Passed 821 | 137 329 355 Spaces Moved 561 | 90 205 266 Core 23 | 15 . 8 Treads . | . . . Legs 397 | 75 205 117 Wheels . | . . . Hover . | . . . Flight 141 | . . 141 Fastest Speed 34 | 50 120 34 Average Speed 99 | 111 120 79 Slowest Speed 350 | 150 120 350 Overloaded Moves . | . . . Propulsion Burnouts . | . . . Robots Hopped . | . . . Cave-ins Triggered . | . . . Exploration Rate (%) 19 | 5 27 27 Regions Visited 2 Branch Regions . Pre-discovered Areas . | . . . Known Exits Taken . | . . . Unknown Exits Taken 2 | 1 1 . Scrap Searched . | . . . Spaces Dug 2 | . . 2 Terrain Destroyed 44 | 1 . 43 Melee 2 | . . 2 Projectile . | . . . AOE 42 | 1 . 41 Terrain Rammed . | . . . Walls Destroyed . | . . . Machines Disabled . | . . . Actions | -11 -10 -9 --------- Run | Scr Mat Mat Total 727 | 109 272 346 Wait 45 | . 38 7 Move 559 | 89 204 266 Hop . | . . . Pick Up 12 | 4 5 3 Fast Attach 24 | 8 5 11 Attach 3 | . . 3 Detach 4 | 1 1 2 Swap 4 | . 2 2 Drop 19 | . 8 11 Fire 37 | 7 9 21 Melee 20 | . . 20 Ram . | . . . Kick . | . . . Crush . | . . . Escape Stasis . | . . . Rewire . | . . . Trap . | . . . Miscellaneous . | . . . Route ------- -11/Scrapyard -10/Materials -9/Materials History --------- Turn | Location | Event 8 | -11/Scrapyard | Discovered new exit (range 16) 138 | -11/Scrapyard | Entered Materials 317 | -10/Materials | Build established: Mutant 410 | -10/Materials | Discovered new exit (range 16) 467 | -10/Materials | Entered another Materials area 467 | -9/Materials | Evolved 2 slots: Propulsion x1, Utility x1 788 | -9/Materials | Core integrity fell below 50% 806 | -9/Materials | Core integrity fell below 20% 814 | -9/Materials | Lost 4 parts (1p3n) 822 | -9/Materials | Destroyed by Y-45 Defender with Beam Rifle Last Messages --------------- 00724_ U-05 Engineer builds a Wall. 00732_ Acquired Imp. Signal Interpreter. 00747_ Dropped Wheel. 00748_ Acquired VTOL Module. 00759_ Dropped Lrg. Battery. 00760_ Acquired Sml. Storage Unit. 00768_ Lgt. Nuclear Core destroyed. 00771_ S-10 Pest destroyed. 00780_ Flight Unit destroyed. 00789_ Destroyed Flight Unit. 00789_ Destroyed Lgt. Ion Engine. 00789_ S-10 Pest system corrupted by crushing effect. 00791_ S-10 Pest misfires. 00793_ Destroyed Flight Unit. 00793_ S-10 Pest system corrupted by crushing effect. 00794_ S-10 Pest system terminally corrupted. 00816_ Destroyed Flight Unit. 00816_ S-10 Pest system corrupted by crushing effect. 00818_ Targeting Computer destroyed. 00819_ S-10 Pest destroyed. Map ----- +----------------------------------------------------+ | "" # #???????# #???? | | """ + T ???? #####+##???? | | "" #= ###??#### ????????????? | | ! ""??# ##### #???????# ?????????????? | | ?? ????# #???###+###???????#??????????????? | | ????????###### ##??????? ????????????????????????? | | ?????????????# #?????????????????????????????????? | | ?????????????# #?????????????????????????????????? | | ?????????????# #?????????????????????????????????? | | ?????????????# #?????????????????????????????????? | | ?????????????# #?????????????????????????????????? | | ?????????????# #?????????????????????????????????? | | ?????????????# #?????????????????????????????????? | | ???????????### ###???????????????????????????????? | | ???????????# #???????????????????????????????? | | ???????????# ###########?????????????????????? | | ???????????# + #?????????????????????? | | ???????????# # #?????????????????????? | | ???????????# # ! #?????????????????????? | | ???????????## ## """ """=####??????????????????? | | ????????????# ## """ """% !##?????????????????? | | ????????????# ## """ """ !#?????????????????? | | ????????????# ## !#?????????????????? | | ????????????# ## % !#?????????????????? | | ???????????? ##+######+# !#?????????????????? | | ???????????# Y ^@ #!!##?????????????????? | | ?????????? + m %####??????????????????? | | ???????????# """ ^ #?????????????????????? | | ???????????# "R ###+###?????????????????????? | | ???????????## """ ?????????????????????????????? | | ????????????? ??????????????????????????????? | | ?????????????? ????????????????????????????????? | | ????????????? ?????????????????????????????????? | | ?????????????????????????????????????????????????? | | ?????????????????????????????????????????????????? | | ?????????????????????????????????????????????????? | | ?????????????????????????????????????????????????? | | ?????????????????????????????????????????????????? | | ?????????????????????????????????????????????????? | | ?????????????????????????????????????????????????? | | ?????????????????????????????????????????????????? | | ?????????????????????????????????????????????????? | | ?????????????????????????????????????????????????? | | ?????????????????????????????????????????????????? | | ?????????????????????????????????????????????????? | | ?????????????????????????????????????????????????? | | ?????????????????????????????????????????????????? | | ?????????????????????????????????????????????????? | | ?????????????????????????????????????????????????? | | ?????????????????????????????????????????????????? | +----------------------------------------------------+ Best States ------------- Heat Dissipation 28 Energy Generation 14 Energy Capacity 250 Matter Stores 300 Matter Capacity 450 Sight Range 16 Terrain Scan Density 10 Evasion (%) 63 Targeting Accuracy 10 Item Schematics ----------------- None Robot Schematics ------------------ None Fabricated ------------ Nothing Alien Tech Used ----------------- None Achievements -------------- None Challenges ------------ None Game ------ Seed ThermalRagnarokAutohacker Manual? 0 Play Time 00:12:33 Cumulative 115.3 hours Start 2021.03.11 @ 07:15:44 End 2021.03.11 @ 07:23:30 Sessions 1 Manual Loads 0 Difficulty Rogue Special Mode None Game No. 92 Rogue 92 Adventurer 0 Explorer 0 Win Type - Total 1 Types 1/0/0/0/0/0/0/0/0 Lore% 40 Gallery% 58 Achievement% 46 Wizard Run 0 Options --------- ASCII 0 Keyboard 0 Movement Numpad Keybinds 0 Fullscreen 0 Font 14/Cog Map View 76x50 Tactical HUD 1 Map Filters NONE Filters NONE Steam 1 RUN: b1327b39-e2d2-4ee3-a7ea-8429bf38143c